fUST/lending_fUST_20250410
["ID","MTS","AMOUNT","RATE_DAILY","PERIOD"]
[357658515,1744287038689,-382.42015619,0.00015457,2]
[357658517,1744287038699,-300.0,0.0001547,2]
[357658519,1744287038709,-2878.28063573,0.00015471,2]
[357658521,1744287038720,-500.0,0.00015471,2]
[357658523,1744287038732,-2878.28063573,0.00015471,2]
[357658525,1744287038742,-500.0,0.00015471,2]
[357658527,1744287038752,-2878.28063573,0.00015471,2]
[357658529,1744287038765,-2878.28063573,0.00015471,2]
[357658531,1744287038776,-288.41526719,0.00015471,2]
[357658533,1744287038787,-2051.1679314,0.00015471,2]
[357658536,1744287038801,-827.11270433,0.00015471,2]
[357658538,1744287038813,-2878.28063573,0.00015471,2]
[357658540,1744287038823,-2878.28063573,0.00015471,2]
[357658542,1744287038834,-2878.28063573,0.00015471,2]
[357658544,1744287038845,-2878.28063573,0.00015471,2]
[357658547,1744287038856,-2878.28063573,0.00015471,2]
[357658550,1744287038866,-2878.28063573,0.00015471,2]
[357658553,1744287038876,-2878.28063573,0.00015471,2]
[357658555,1744287038886,-2878.28063573,0.00015471,2]
[357658557,1744287038896,-2878.28063573,0.00015471,2]
[357658559,1744287038907,-2878.28063573,0.00015471,2]
[357658561,1744287038918,-2878.28063573,0.00015471,2]
[357658563,1744287038928,-2878.28063573,0.00015471,2]
[357658565,1744287038939,-2878.28063573,0.00015471,2]
[357658567,1744287038948,-2878.28063573,0.00015471,2]
[357658568,1744287038958,-2878.28063573,0.00015471,2]
[357658570,1744287038970,-2878.28063573,0.00015471,2]
[357658571,1744287038981,-2878.28063573,0.00015471,2]
[357658572,1744287038990,-2878.28063573,0.00015471,2]
[357658573,1744287039000,-719.58560025,0.00015471,2]
[357658612,1744287271731,4648.0630974,0.0001456,2]
[357658613,1744287280094,180.1170761,0.00014148,2]
[357658614,1744287464892,250.0,0.00014467,2]
[357658615,1744287537651,24900.0,0.00014561,2]
[357658735,1744288180107,180.12608826,0.00014148,2]
[357658741,1744288216441,-151.0,0.00015157,2]
[357658768,1744288232799,-97.592,0.00015157,2]
[357658769,1744288232812,-1168.92091916,0.00015262,2]
[357658770,1744288232823,-151.0,0.00015355,2]
[357658771,1744288232834,-300.0,0.00015361,2]
[357658772,1744288232844,-500.0,0.00015362,2]
[357658773,1744288232855,-344.96836111,0.00015362,2]
[357658774,1744288232869,-4924.02800715,0.00015362,2]
[357658775,1744288232879,-500.0,0.00015362,2]
[357658776,1744288232890,-206.88269258,0.00015362,2]
[357658777,1744288232901,-4924.02800715,0.00015362,2]
[357658778,1744288232912,-500.0,0.00015362,2]
[357658779,1744288232922,-4924.02800715,0.00015362,2]
[357658780,1744288232932,-273.33151484,0.00015362,2]
[357658781,1744288232945,-226.66848516,0.00015362,2]
[357658782,1744288232955,-500.0,0.00015362,2]
[357658783,1744288232966,-500.0,0.00015362,2]
[357658784,1744288232977,-4924.02800715,0.00015362,2]
[357658785,1744288232988,-500.0,0.00015362,2]
[357658786,1744288233001,-500.0,0.00015362,2]
[357658787,1744288233011,-4924.02800715,0.00015362,2]
[357658788,1744288233022,-382.81161962,0.00015362,2]
[357658789,1744288233033,-500.0,0.00015362,2]
[357658790,1744288233044,-500.0,0.00015362,2]
[357658791,1744288233063,-4924.02800715,0.00015362,2]
[357658792,1744288233080,-500.0,0.00015362,2]
[357658793,1744288233092,-500.0,0.00015362,2]
[357658794,1744288233104,-4924.02800715,0.00015362,2]
[357658795,1744288233120,-500.0,0.00015362,2]
[357658796,1744288233132,-4924.02800715,0.00015362,2]
[357658797,1744288233144,-500.0,0.00015362,2]
[357658798,1744288233156,-4924.02800715,0.00015362,2]
[357658799,1744288233167,-500.0,0.00015362,2]
[357658800,1744288233178,-4924.02800715,0.00015362,2]
[357658801,1744288233190,-4924.02800715,0.00015362,2]
[357658802,1744288233201,-3061.37115359,0.00015362,2]
[357658803,1744288233221,-1419.49748092,0.00015362,2]
[357658804,1744288233250,-443.15937264,0.00015362,2]
[357658805,1744288233262,-3603.47953171,0.00015362,2]
[357658806,1744288235086,-285.5,0.00015362,2]
[357658867,1744288239397,-24780.51365923,0.00015362,2]
[357658897,1744288240176,-176.50603043,0.00015362,2]
[357658902,1744288241441,-5788.6236285,0.00015362,2]
[357658923,1744288243734,-4123.65,0.00015362,2]
[357658937,1744288244536,-204.26402536,0.00015362,2]
[357659022,1744288247476,-3027.11906991,0.00015362,2]
[357659103,1744288250205,-500.0,0.00015362,2]
[357659104,1744288259503,733.62,0.00010959,2]
[357659105,1744288260225,-500.0,0.00015362,2]
[357659106,1744288263498,-300.0,0.00015361,2]
[357659107,1744288265802,-167.72859202,0.00015362,2]
[357659109,1744288313251,-254.68189248,0.00015361,2]
[357659110,1744288318141,-171.5637043,0.00015361,2]
[357659111,1744288321609,556.12,0.00010959,2]
[357659112,1744288323428,-250.90515104,0.0001536,2]
[357659113,1744288352252,-49.09484896,0.0001536,2]
[357659114,1744288352279,-138.93250449,0.00015361,2]
[357659115,1744288355265,-150.23979297,0.0001536,2]
[357659116,1744288383289,-300.0,0.00015261,2]
[357659117,1744288415900,-207.9620035,0.0001526,2]
[357659119,1744288442182,-225.92606092,0.0001526,2]
[357659120,1744288474726,-190.95493405,0.0001526,2]
[357659121,1744288478713,-191.72352889,0.0001526,2]
[357659122,1744288506221,-300.0,0.00015259,2]
[357659123,1744288564023,-199.29166671,0.00015259,2]
[357659124,1744288598469,-100.70833329,0.00015259,2]
[357659125,1744288598494,-83.16959761,0.00015259,2]
[357659126,1744288623840,-183.8779309,0.0001516,2]
[357659127,1744288623867,-90.07782764,0.00015258,2]
[357659128,1744288637363,-226.04424146,0.00015159,2]
[357659129,1744288683593,-200.0,0.00015159,2]
[357659130,1744288687453,-277.7817906,0.00015159,2]
[357659131,1744288717732,-192.70139468,0.00015158,2]
[357659132,1744288720169,198.874,0.00014954,2]
[357659133,1744288720842,-191.72352887,0.00015158,2]
[357659134,1744288726705,213.8157821,0.00014258,2]
[357659135,1744288727352,-115.57507645,0.00015158,2]
[357659136,1744288727378,-42.98961239,0.00015158,2]
[357659137,1744288804614,-250.0,0.00015059,2]
[357659138,1744288804659,-26.5493959,0.00015157,2]
[357659139,1744288838577,-183.8779309,0.00015157,2]
[357659140,1744288866951,-300.0,0.00015057,2]
[357659141,1744288878627,-273.95233523,0.00015057,2]
[357659142,1744288910587,-171.19814605,0.00015048,2]
[357659143,1744288922613,-20.52538282,0.00015048,2]
[357659144,1744288922639,-207.72701053,0.00015057,2]
[357659145,1744288930633,-51.07738856,0.00015057,2]
[357659146,1744288930657,-100.02717895,0.00015057,2]
[357659147,1744288933377,-181.10157079,0.00015057,2]
[357659148,1744288937280,250.0,0.00014957,2]
[357659149,1744288937822,-18.87125026,0.00015057,2]
[357659150,1744288937848,-134.63371511,0.00015058,2]
[357659152,1744288942316,-164.9835011,0.00015058,2]
[357659153,1744288953457,-179.0240392,0.00015057,2]
[357659154,1744288984660,-161.44955088,0.00015056,2]
[357659155,1744289010431,158.5646888,0.00014133,2]
[357659156,1744289016787,3807.02310407,0.00014957,2]
[357659157,1744289017997,-138.55044912,0.00015056,2]
[357659158,1744289018021,-135.32748178,0.00015057,2]
[357659159,1744289043275,-210.69165395,0.00015056,2]
[357659160,1744289059598,250.0,0.00014957,2]
[357659161,1744289060188,-89.30834605,0.00015056,2]
[357659162,1744289060211,-55.3099461,0.00015057,2]
[357659163,1744289060233,-14.55970555,0.00015057,2]
[357659164,1744289060835,-159.1779977,0.00015057,2]
[357659165,1744289066790,-155.60123545,0.00015057,2]
[357659166,1744289073143,-300.0,0.00015057,2]
[357659167,1744289075506,-155.86981566,0.00015056,2]
[357659168,1744289080599,728.66214253,0.00014957,2]
[357659169,1744289080644,180.07563177,0.00014148,2]
[357659170,1744289103857,-157.93148628,0.00015055,2]
[357659175,1744289164237,-300.0,0.00015055,2]
[357659176,1744289193711,-160.0,0.00015055,2]
[357659177,1744289203922,250.0,0.00014956,2]
[357659178,1744289204543,-160.0,0.00015055,2]
[357659179,1744289224869,-166.4509017,0.00015054,2]
[357659251,1744289281162,24900.0,0.00014057,2]
[357659252,1744289283756,-200.95324731,0.00015054,2]
[357659253,1744289295935,637.57937474,0.00014955,2]
[357659254,1744289313659,-99.04675269,0.00015054,2]
[357659255,1744289313684,-196.88061053,0.00015055,2]
[357659256,1744289316535,-223.89299807,0.00015054,2]
[357659257,1744289347445,250.0,0.00014955,2]
[357659260,1744289362229,32747.4361222,0.00014903,2]
[357659261,1744289403741,-300.0,0.00015053,2]
[357659262,1744289415580,-151.0,0.00015047,2]
[357659295,1744289431701,-50000.0,0.00015054,2]
[357659297,1744289431711,-143.69099238,0.00015054,2]
[357659299,1744289431721,-187.95457381,0.00015054,2]
[357659301,1744289431732,-500.0,0.00015054,2]
[357659303,1744289431743,-500.0,0.00015054,2]
[357659305,1744289431753,-500.0,0.00015054,2]
[357659307,1744289431763,-937.19570701,0.00015054,2]
[357659309,1744289431774,-456.47154855,0.00015054,2]
[357659311,1744289431783,-937.19570701,0.00015054,2]
[357659313,1744289431793,-500.0,0.00015054,2]
[357659315,1744289431802,-500.0,0.00015054,2]
[357659317,1744289431814,-937.19570701,0.00015054,2]
[357659319,1744289431824,-500.0,0.00015054,2]
[357659321,1744289431834,-937.19570701,0.00015054,2]
[357659323,1744289431844,-500.0,0.00015054,2]
[357659326,1744289431854,-500.0,0.00015054,2]
[357659328,1744289431863,-937.19570701,0.00015054,2]
[357659330,1744289431873,-500.0,0.00015054,2]
[357659332,1744289431882,-500.0,0.00015054,2]
[357659334,1744289431891,-937.19570701,0.00015054,2]
[357659335,1744289431902,-500.0,0.00015054,2]
[357659337,1744289431912,-937.19570701,0.00015054,2]
[357659340,1744289431922,-246.92898835,0.00015054,2]
[357659342,1744289431931,-937.19570701,0.00015054,2]
[357659344,1744289431943,-500.0,0.00015054,2]
[357659346,1744289431952,-937.19570701,0.00015054,2]
[357659348,1744289431962,-937.19570701,0.00015054,2]
[357659350,1744289431972,-937.19570701,0.00015054,2]
[357659352,1744289431981,-937.19570701,0.00015054,2]
[357659354,1744289431991,-937.19570701,0.00015054,2]
[357659356,1744289432000,-937.19570701,0.00015054,2]
[357659358,1744289432010,-937.19570701,0.00015054,2]
[357659360,1744289432020,-937.19570701,0.00015054,2]
[357659362,1744289432030,-937.19570701,0.00015054,2]
[357659364,1744289432040,-937.19570701,0.00015054,2]
[357659366,1744289432050,-937.19570701,0.00015054,2]
[357659368,1744289432060,-937.19570701,0.00015054,2]
[357659370,1744289432070,-937.19570701,0.00015054,2]
[357659372,1744289432079,-937.19570701,0.00015054,2]
[357659374,1744289432089,-937.19570701,0.00015054,2]
[357659376,1744289432100,-937.19570701,0.00015054,2]
[357659379,1744289432109,-937.19570701,0.00015054,2]
[357659381,1744289432119,-937.19570701,0.00015054,2]
[357659383,1744289432128,-937.19570701,0.00015054,2]
[357659384,1744289432138,-937.19570701,0.00015054,2]
[357659385,1744289432148,-937.19570701,0.00015054,2]
[357659386,1744289432157,-937.19570701,0.00015054,2]
[357659387,1744289432166,-937.19570701,0.00015054,2]
[357659388,1744289432176,-937.19570701,0.00015054,2]
[357659389,1744289432187,-937.19570701,0.00015054,2]
[357659390,1744289432197,-500.0,0.00015054,2]
[357659391,1744289432207,-937.19570701,0.00015054,2]
[357659392,1744289432216,-341.48150426,0.00015054,2]
[357659393,1744289432226,-937.19570701,0.00015054,2]
[357659394,1744289432235,-937.19570701,0.00015054,2]
[357659395,1744289432245,-937.19570701,0.00015054,2]
[357659396,1744289432255,-937.19570701,0.00015054,2]
[357659397,1744289432266,-937.19570701,0.00015054,2]
[357659398,1744289432277,-937.19570701,0.00015054,2]
[357659399,1744289432287,-937.19570701,0.00015054,2]
[357659400,1744289432297,-937.19570701,0.00015054,2]
[357659401,1744289432307,-937.19570701,0.00015054,2]
[357659402,1744289432316,-937.19570701,0.00015054,2]
[357659403,1744289432326,-937.19570701,0.00015054,2]
[357659404,1744289432335,-937.19570701,0.00015054,2]
[357659406,1744289432345,-937.19570701,0.00015054,2]
[357659408,1744289432356,-937.19570701,0.00015054,2]
[357659410,1744289432366,-937.19570701,0.00015054,2]
[357659412,1744289432375,-937.19570701,0.00015054,2]
[357659414,1744289432385,-937.19570701,0.00015054,2]
[357659416,1744289432394,-937.19570701,0.00015054,2]
[357659418,1744289432404,-500.0,0.00015054,2]
[357659420,1744289432414,-522.34190848,0.00015054,2]
[357659422,1744289432424,-500.0,0.00015054,2]
[357659424,1744289432434,-500.0,0.00015054,2]
[357659426,1744289432444,-500.0,0.00015054,2]
[357659428,1744289432454,-500.0,0.00015054,2]
[357659430,1744289432464,-500.0,0.00015054,2]
[357659432,1744289432475,-500.0,0.00015054,2]
[357659434,1744289432485,-500.0,0.00015054,2]
[357659436,1744289432495,-35552.48237617,0.00015054,2]
[357659438,1744289432504,-500.0,0.00015054,2]
[357659440,1744289432515,-500.0,0.00015054,2]
[357659442,1744289432525,-35552.48237617,0.00015054,2]
[357659444,1744289432535,-500.0,0.00015054,2]
[357659446,1744289432544,-500.0,0.00015054,2]
[357659448,1744289432554,-35552.48237617,0.00015054,2]
[357659450,1744289432564,-500.0,0.00015054,2]
[357659452,1744289432574,-500.0,0.00015054,2]
[357659454,1744289432583,-500.0,0.00015054,2]
[357659456,1744289432593,-35552.48237617,0.00015054,2]
[357659458,1744289432603,-500.0,0.00015054,2]
[357659460,1744289432614,-35552.48237617,0.00015054,2]
[357659462,1744289432623,-500.0,0.00015054,2]
[357659464,1744289432632,-500.0,0.00015054,2]
[357659466,1744289432642,-500.0,0.00015054,2]
[357659468,1744289432652,-500.0,0.00015054,2]
[357659470,1744289432662,-35552.48237617,0.00015054,2]
[357659472,1744289432671,-615.88099871,0.00015054,2]
[357659474,1744289432681,-35552.48237617,0.00015054,2]
[357659476,1744289432692,-500.0,0.00015054,2]
[357659478,1744289432702,-500.0,0.00015054,2]
[357659480,1744289432711,-18524.7026949,0.00015054,2]
[357659483,1744289432725,-17027.77968127,0.00015054,2]
[357659485,1744289432735,-500.0,0.00015054,2]
[357659487,1744289432749,-315.72016714,0.00015054,2]
[357659489,1744289432759,-500.0,0.00015054,2]
[357659491,1744289432768,-500.0,0.00015054,2]
[357659493,1744289432779,-500.0,0.00015054,2]
[357659495,1744289432788,-35552.48237617,0.00015054,2]
[357659497,1744289432798,-500.0,0.00015054,2]
[357659500,1744289432808,-35552.48237617,0.00015054,2]
[357659502,1744289432818,-500.0,0.00015054,2]
[357659504,1744289432828,-35552.48237617,0.00015054,2]
[357659506,1744289432838,-35552.48237617,0.00015054,2]
[357659508,1744289432848,-500.0,0.00015054,2]
[357659510,1744289432858,-35552.48237617,0.00015054,2]
[357659512,1744289432868,-500.0,0.00015054,2]
[357659514,1744289432878,-35552.48237617,0.00015054,2]
[357659516,1744289432887,-35552.48237617,0.00015054,2]
[357659518,1744289432898,-500.0,0.00015054,2]
[357659520,1744289432907,-35552.48237617,0.00015054,2]
[357659522,1744289432917,-35552.48237617,0.00015054,2]
[357659524,1744289432926,-35552.48237617,0.00015054,2]
[357659526,1744289432937,-35552.48237617,0.00015054,2]
[357659528,1744289432947,-35552.48237617,0.00015054,2]
[357659530,1744289432956,-35552.48237617,0.00015054,2]
[357659532,1744289432967,-35552.48237617,0.00015054,2]
[357659534,1744289432977,-35552.48237617,0.00015054,2]
[357659537,1744289432987,-500.0,0.00015054,2]
[357659539,1744289432996,-35552.48237617,0.00015054,2]
[357659541,1744289433006,-35552.48237617,0.00015054,2]
[357659543,1744289433016,-18575.19100111,0.00015054,2]
[357659545,1744289433033,-3415.89375617,0.00015054,2]
[357659548,1744289433045,-2806.01005726,0.00015054,2]
[357659550,1744289433058,-10755.38756163,0.00015054,2]
[357659552,1744289433068,-35552.48237617,0.00015054,2]
[357659554,1744289433079,-35552.48237617,0.00015054,2]
[357659556,1744289433089,-35552.48237617,0.00015054,2]
[357659558,1744289433099,-499.99999999,0.00015054,2]
[357659560,1744289433110,-35552.48237615,0.00015054,2]
[357659562,1744289433120,-10563.94661671,0.00015054,2]
[357659565,1744289433133,-24988.53575944,0.00015054,2]
[357659567,1744289433142,-35552.48237615,0.00015054,2]
[357659569,1744289433153,-35552.48237615,0.00015054,2]
[357659571,1744289433164,-18956.49948826,0.00015054,2]
[357659581,1744289433255,-555.71394644,0.00015054,2]
[357659663,1744289437779,-898.96979116,0.00015054,2]
[357659664,1744289437890,-15141.29915029,0.00015054,2]
[357659665,1744289437900,-10974.7194509,0.00015054,2]
[357659666,1744289437914,-24577.76292525,0.00015054,2]
[357659667,1744289437924,-12455.6559521,0.00015054,2]
[357659675,1744289438720,-154.80629526,0.00015054,2]
[357659714,1744289442884,-4115.949987,0.00015054,2]
[357659776,1744289445971,-4054.37973492,0.00015054,2]
[357659784,1744289450146,-158.5583837,0.00015054,2]
[357659785,1744289490785,250.0,0.00014954,2]
[357659786,1744289521857,557.88195288,0.00014954,2]
[357659787,1744289536300,379.4310263,0.00014057,2]
[357659788,1744289634173,250.0,0.00014953,2]
[357659789,1744289653844,367.533346,0.00014056,2]
[357659790,1744289695639,531.9034829,0.00014056,2]
[357659791,1744289731821,250.0,0.00014056,2]
[357659792,1744289736922,488.14670877,0.00014953,2]
[357659793,1744289750595,250.0,0.00014953,2]
[357659795,1744289894559,250.0,0.00014951,2]
[357659796,1744289952328,427.1283702,0.0001495,2]
[357659797,1744289978813,180.08463978,0.00014148,2]
[357659798,1744290037866,250.0,0.00014949,2]
[357659799,1744290061930,3927.7123757,0.00014054,2]
[357659800,1744290102801,199.29166671,0.00014949,2]
[357659801,1744290117036,159.1779977,0.00014054,2]
[357659802,1744290173677,373.73732389,0.00014948,2]
[357659803,1744290181285,250.0,0.00014948,2]
[357659804,1744290186598,88571.12731471,0.00014949,2]
[357659805,1744290277989,1000.0,0.000149,2]
[357659806,1744290300533,2580.15828888,0.00025,120]
[357659807,1744290303619,250.0,0.00014948,2]
[357659808,1744290304991,81281.67038379,0.00014949,2]
[357659809,1744290390976,327.02015843,0.00014947,2]
[357659850,1744290448650,250.0,0.00014947,2]
[357659851,1744290451359,24900.0,0.00014048,2]
[357659852,1744290464452,1066.95248,0.0001416,2]
[357659856,1744290591892,250.0,0.00014941,2]
[357659857,1744290591926,23463.4938153,0.00014046,2]
[357659858,1744290607901,286.1426386,0.00014945,2]
[357659871,1744290631898,-151.0,0.00015038,2]
[357659872,1744290631908,-300.0,0.00015044,2]
[357659873,1744290631918,-500.0,0.00015045,2]
[357659874,1744290631928,-500.0,0.00015045,2]
[357659875,1744290631937,-500.0,0.00015045,2]
[357659876,1744290631947,-6298.72521344,0.00015045,2]
[357659877,1744290631957,-500.0,0.00015045,2]
[357659878,1744290631967,-500.0,0.00015045,2]
[357659879,1744290631976,-6298.72521344,0.00015045,2]
[357659880,1744290631986,-500.0,0.00015045,2]
[357659882,1744290631996,-476.55538716,0.00015045,2]
[357659884,1744290632006,-6298.72521344,0.00015045,2]
[357659886,1744290632015,-500.0,0.00015045,2]
[357659888,1744290632025,-6298.72521344,0.00015045,2]
[357659890,1744290632034,-500.0,0.00015045,2]
[357659892,1744290632044,-6298.72521344,0.00015045,2]
[357659895,1744290632055,-500.0,0.00015045,2]
[357659897,1744290632067,-6298.72521344,0.00015045,2]
[357659899,1744290632077,-6298.72521344,0.00015045,2]
[357659900,1744290632086,-313.23120069,0.00015045,2]
[357659901,1744290632096,-6298.72521344,0.00015045,2]
[357659902,1744290632105,-500.0,0.00015045,2]
[357659903,1744290632115,-6298.72521344,0.00015045,2]
[357659904,1744290632130,-500.0,0.00015045,2]
[357659905,1744290632140,-6298.72521344,0.00015045,2]
[357659906,1744290632150,-6298.72521344,0.00015045,2]
[357659907,1744290632162,-6298.72521344,0.00015045,2]
[357659908,1744290632172,-6298.72521344,0.00015045,2]
[357659909,1744290632182,-6298.72521344,0.00015045,2]
[357659910,1744290632192,-6298.72521344,0.00015045,2]
[357659911,1744290632203,-6298.72521344,0.00015045,2]
[357659912,1744290632213,-6298.72521344,0.00015045,2]
[357659913,1744290632222,-6298.72521344,0.00015045,2]
[357659914,1744290632232,-6298.72521344,0.00015045,2]
[357659915,1744290632243,-6298.72521344,0.00015045,2]
[357659916,1744290632253,-6298.72521344,0.00015045,2]
[357659917,1744290632263,-6298.72521344,0.00015045,2]
[357659918,1744290632273,-6298.72521344,0.00015045,2]
[357659919,1744290632282,-6298.72521344,0.00015045,2]
[357659920,1744290632292,-6298.72521344,0.00015045,2]
[357659921,1744290632301,-6298.72521344,0.00015045,2]
[357659922,1744290632312,-6298.72521344,0.00015045,2]
[357659923,1744290632322,-6298.72521344,0.00015045,2]
[357659924,1744290632333,-6298.72521344,0.00015045,2]
[357659925,1744290632342,-6298.72521344,0.00015045,2]
[357659926,1744290632352,-6298.72521344,0.00015045,2]
[357659927,1744290632362,-6298.72521344,0.00015045,2]
[357659928,1744290632373,-6298.72521344,0.00015045,2]
[357659929,1744290632383,-6298.72521344,0.00015045,2]
[357659930,1744290632392,-6298.72521344,0.00015045,2]
[357659931,1744290632402,-6298.72521344,0.00015045,2]
[357659932,1744290632413,-6298.72521344,0.00015045,2]
[357659933,1744290632423,-5605.27764687,0.00015045,2]
[357659934,1744290632436,-693.44756657,0.00015045,2]
[357659935,1744290632446,-6298.72521344,0.00015045,2]
[357659936,1744290632457,-6298.72521344,0.00015045,2]
[357659937,1744290632467,-6298.72521344,0.00015045,2]
[357659938,1744290632477,-6298.72521344,0.00015045,2]
[357659939,1744290632488,-257.30879331,0.00015045,2]
[357659940,1744290632498,-6298.72521344,0.00015045,2]
[357659941,1744290632509,-6298.72521344,0.00015045,2]
[357659942,1744290632519,-6298.72521344,0.00015045,2]
[357659943,1744290632529,-6298.72521344,0.00015045,2]
[357659944,1744290632539,-6298.72521344,0.00015045,2]
[357659945,1744290632549,-6298.72521344,0.00015045,2]
[357659946,1744290632559,-6298.72521344,0.00015045,2]
[357659947,1744290632569,-6298.72521344,0.00015045,2]
[357659948,1744290632579,-6298.72521344,0.00015045,2]
[357659949,1744290632589,-6298.72521344,0.00015045,2]
[357659950,1744290632599,-6298.72521344,0.00015045,2]
[357659951,1744290632609,-6298.72521344,0.00015045,2]
[357659952,1744290632619,-6298.72521344,0.00015045,2]
[357659953,1744290632628,-6298.72521344,0.00015045,2]
[357659954,1744290632638,-6298.72521344,0.00015045,2]
[357659955,1744290632648,-6298.72521344,0.00015045,2]
[357659956,1744290632657,-6298.72521344,0.00015045,2]
[357659957,1744290632667,-6298.72521344,0.00015045,2]
[357659958,1744290632678,-6298.72521344,0.00015045,2]
[357659959,1744290632687,-6298.72521344,0.00015045,2]
[357659960,1744290632697,-6298.72521344,0.00015045,2]
[357659961,1744290632708,-6298.72521344,0.00015045,2]
[357659962,1744290632718,-6298.72521344,0.00015045,2]
[357659963,1744290632728,-6298.72521344,0.00015045,2]
[357659964,1744290632738,-6298.72521344,0.00015045,2]
[357659965,1744290632747,-6298.72521344,0.00015045,2]
[357659966,1744290632758,-6265.5740281,0.00015045,2]
[357659967,1744290632768,-6265.5740281,0.00015045,2]
[357659968,1744290632778,-6265.5740281,0.00015045,2]
[357659969,1744290632788,-6265.5740281,0.00015045,2]
[357659970,1744290632797,-6265.5740281,0.00015045,2]
[357659971,1744290632807,-6265.5740281,0.00015045,2]
[357659972,1744290632818,-6265.5740281,0.00015045,2]
[357659973,1744290632828,-6265.5740281,0.00015045,2]
[357659974,1744290632838,-6265.5740281,0.00015045,2]
[357659975,1744290632849,-6265.5740281,0.00015045,2]
[357659976,1744290633012,-6265.5740281,0.00015045,2]
[357659977,1744290633026,-6265.5740281,0.00015045,2]
[357659978,1744290633038,-6265.5740281,0.00015045,2]
[357659979,1744290633048,-6265.5740281,0.00015045,2]
[357659980,1744290633059,-6265.5740281,0.00015045,2]
[357659981,1744290633069,-6265.5740281,0.00015045,2]
[357659982,1744290633078,-6265.5740281,0.00015045,2]
[357659983,1744290633088,-6265.5740281,0.00015045,2]
[357659984,1744290633098,-6265.5740281,0.00015045,2]
[357659985,1744290633108,-50000.0,0.00015045,2]
[357659986,1744290633118,-351.278585,0.00015046,2]
[357659987,1744290633128,-351.278585,0.00015046,2]
[357659988,1744290633138,-351.278585,0.00015046,2]
[357659989,1744290633148,-351.278585,0.00015046,2]
[357659990,1744290633157,-151.0,0.00015046,2]
[357659991,1744290633170,-151.0,0.00015046,2]
[357659992,1744290633179,-151.0,0.00015046,2]
[357659993,1744290633189,-151.0,0.00015047,2]
[357659994,1744290633199,-151.0,0.00015047,2]
[357659995,1744290633209,-151.731806,0.00015047,2]
[357659996,1744290633219,-151.0,0.00015047,2]
[357659997,1744290633228,-151.0,0.00015047,2]
[357659998,1744290633238,-151.0,0.00015047,2]
[357659999,1744290633248,-154.890574,0.00015047,2]
[357660000,1744290633259,-151.789691,0.00015047,2]
[357660001,1744290633268,-588.386979,0.00015047,2]
[357660002,1744290633278,-588.386979,0.00015047,2]
[357660003,1744290633287,-588.386979,0.00015047,2]
[357660004,1744290633297,-151.0,0.00015047,2]
[357660005,1744290633306,-588.386979,0.00015047,2]
[357660006,1744290633316,-151.0,0.00015047,2]
[357660007,1744290633326,-588.386979,0.00015047,2]
[357660008,1744290633336,-151.0,0.00015047,2]
[357660009,1744290633346,-588.386979,0.00015047,2]
[357660010,1744290633356,-151.0,0.00015047,2]
[357660011,1744290633367,-351.278585,0.00015047,2]
[357660012,1744290633378,-351.278585,0.00015047,2]
[357660013,1744290633388,-151.0,0.00015048,2]
[357660014,1744290633398,-151.0,0.00015048,2]
[357660015,1744290633409,-151.0,0.00015048,2]
[357660016,1744290633422,-154.489913,0.00015048,2]
[357660017,1744290633433,-588.386979,0.00015048,2]
[357660018,1744290633443,-588.386979,0.00015048,2]
[357660019,1744290633454,-370.115885,0.00015048,2]
[357660020,1744290633465,-370.115885,0.00015048,2]
[357660021,1744290633475,-370.115885,0.00015048,2]
[357660022,1744290633486,-155.054879,0.00015048,2]
[357660023,1744290633496,-151.0,0.00015049,2]
[357660024,1744290633507,-151.0,0.00015049,2]
[357660025,1744290633517,-151.0,0.00015049,2]
[357660026,1744290633527,-151.0,0.00015049,2]
[357660027,1744290633537,-151.0,0.00015049,2]
[357660028,1744290633547,-151.0,0.00015049,2]
[357660029,1744290633558,-151.0,0.00015049,2]
[357660030,1744290633568,-151.0,0.0001505,2]
[357660031,1744290633579,-151.0,0.0001505,2]
[357660032,1744290633588,-151.0,0.0001505,2]
[357660033,1744290633599,-151.0,0.0001505,2]